bitfinex-derivatives/quotes_ETHF0:USTF0_20250701
["timestamp","ask_amount","ask_price","bid_price","bid_amount"]
[1751339557540,0.80526,2483.1,2483.0,6.31084299]
[1751339558240,0.80523,2483.2,2483.1,0.80522]
[1751339558435,0.80523,2483.2,2483.1,4.35282299]
[1751339558737,0.6816,2483.7,2483.1,10.56069299]
[1751339558943,5.99339997,2484.2,2483.8,0.80498]
[1751339558944,0.805,2483.9,2483.8,0.80498]
[1751339559135,3.2078,2484.1,2483.8,3.54760299]
[1751339559432,3.2078,2484.1,2484.0,2.27760299]
[1751339559433,4.01273,2484.1,2484.0,2.27760299]
[1751339559638,4.01273,2484.1,2484.0,1.27]
[1751339561541,0.80493,2484.1,2484.0,1.27]
[1751339563941,0.80493,2484.1,2484.0,2.07495]
[1751339564442,0.80491,2484.2,2484.1,0.8049]
[1751339564643,0.80491,2484.2,2484.1,1.27]
[1751339565143,3.8894,2484.4,2484.0,2.27760299]
[1751339565144,0.80492,2484.1,2484.0,2.27760299]
[1751339565345,0.80492,2484.1,2484.0,3.54760299]
[1751339567245,0.80492,2484.1,2484.0,1.27]
[1751339568537,0.80492,2484.1,2484.0,4.35255299]
[1751339570139,0.80492,2484.1,2484.0,3.54760299]
[1751339571143,0.80498,2483.9,2483.8,2.27760299]
[1751339571344,0.80498,2483.9,2483.8,1.27]
[1751339571643,0.80498,2483.9,2483.8,2.07501]
[1751339572244,1.3796,2484.3,2483.8,2.07501]
[1751339572245,0.80496,2484.0,2483.9,0.80496]
[1751339572446,0.80496,2484.0,2483.9,2.07496]
[1751339573347,0.80496,2484.0,2483.9,1.27]
[1751339573846,0.80496,2484.0,2483.9,2.07498]
[1751339574746,0.80494,2484.1,2484.0,0.80492]
[1751339574946,0.80494,2484.1,2484.0,4.35252299]
[1751339578050,0.80492,2484.2,2484.1,0.8049]
[1751339578246,0.80486,2484.3,2484.2,0.80485]
[1751339578445,0.80488,2484.2,2484.1,1.52251]
[1751339578948,0.80488,2484.2,2484.1,1.9876]
[1751339579145,0.80488,2484.2,2484.1,2.79252]
[1751339580547,0.80488,2484.2,2484.1,1.9876]
[1751339580947,0.80488,2484.2,2484.1,0.7176]
[1751339581148,0.80488,2484.2,2484.1,1.9876]
[1751339581753,0.80488,2484.2,2484.1,0.7176]
[1751339582251,0.80488,2484.2,2484.1,1.52252]
[1751339582451,0.80488,2484.2,2484.1,2.79252]
[1751339582652,0.80488,2484.2,2484.1,1.9876]
[1751339583252,0.80488,2484.2,2484.1,0.7176]
[1751339583953,0.80488,2484.2,2484.1,1.52252]
[1751339584153,0.80488,2484.2,2484.1,1.58252]
[1751339584551,0.80488,2484.2,2484.1,3.86012299]
[1751339584749,0.80487,2484.3,2484.2,0.80485]
[1751339584949,0.80487,2484.3,2484.2,2.07485]
[1751339585355,0.80487,2484.3,2484.2,1.27]
[1751339587756,0.80487,2484.3,2484.2,2.07488]
[1751339587962,7.19131605,2484.4,2484.3,0.80485]
[1751339588153,7.19131605,2484.4,2484.3,4.35245299]
[1751339588354,6.38647605,2484.4,2484.3,4.35245299]
[1751339588755,3.17867605,2484.4,2484.3,5.73635299]
[1751339588956,3.17867605,2484.5,2484.4,0.80482]
[1751339589149,3.17867605,2484.5,2484.4,4.35242299]
[1751339589351,3.98346605,2484.5,2484.4,4.35242299]
[1751339589960,3.98345605,2484.6,2484.5,0.80479]
[1751339590156,3.98345605,2484.6,2484.5,2.07479]
[1751339590465,0.80478,2484.6,2484.5,2.07479]
[1751339591760,4.01254,2484.7,2484.6,0.80475]
[1751339591959,4.01254,2484.7,2484.6,4.35235299]
[1751339592659,3.2078,2484.7,2484.6,4.35235299]
[1751339592861,7.19108605,2485.1,2485.0,0.80462]
[1751339593159,3.17867605,2485.2,2485.1,0.80459]
[1751339593359,0.668,2485.3,2485.0,2.27760299]
[1751339593556,0.80459,2485.1,2485.0,4.35219299]
[1751339593956,0.80462,2485.0,2484.9,3.8595]
[1751339594162,0.80462,2485.0,2484.9,3.8995]
[1751339594461,0.80462,2485.0,2484.9,3.2478]
[1751339595962,0.80462,2485.0,2484.9,0.04]
[1751339596158,4.28909299,2485.1,2484.6,3.8623]
[1751339596366,4.28909299,2485.1,2484.6,3.3578]
[1751339596367,0.80472,2484.7,2484.6,3.3578]
[1751339596758,0.80472,2484.7,2484.6,3.2078]
[1751339597263,0.80472,2484.7,2484.6,4.4778]
[1751339597566,0.80472,2484.7,2484.6,5.28255]
[1751339598061,0.6872,2484.9,2484.6,6.75540299]
[1751339598268,0.80465,2485.0,2484.9,0.80464]
[1751339598460,0.80465,2485.0,2484.9,7.56004299]
[1751339599261,4.01397,2485.3,2484.9,6.75540299]
[1751339599262,0.6959,2485.3,2484.9,6.75540299]
[1751339599463,1.50043,2485.3,2485.2,2.27760299]
[1751339599664,1.50043,2485.3,2485.2,3.54760299]
[1751339599862,1.50043,2485.3,2485.2,2.27760299]
[1751339600164,0.80459,2485.1,2485.0,3.08222299]
[1751339600359,0.80459,2485.1,2485.0,4.35222299]
[1751339602467,0.80458,2485.2,2485.1,0.80457]
[1751339602768,0.80458,2485.2,2485.1,4.35217299]
[1751339603763,0.80458,2485.2,2485.1,3.54760299]
[1751339604665,0.80462,2485.0,2484.9,5.48540299]
[1751339604861,0.80462,2485.0,2484.9,6.75540299]
[1751339605256,0.80462,2485.0,2484.9,3.2078]
[1751339605458,0.80462,2485.0,2484.9,7.56006299]
[1751339605866,0.80462,2485.0,2484.9,3.2078]
[1751339606161,0.80469,2484.8,2484.7,3.74371299]
[1751339606466,0.80469,2484.8,2484.7,5.01371299]
[1751339608170,0.80469,2484.8,2484.7,5.67371299]
[1751339610270,0.80469,2484.8,2484.7,1.27]
[1751339610668,2.18409,2484.8,2484.7,1.27]
[1751339610869,0.80469,2484.8,2484.7,3.54760299]
[1751339611067,0.80469,2484.8,2484.7,4.21650299]
[1751339611264,0.80469,2484.8,2484.7,5.02122299]
[1751339611465,0.80469,2484.8,2484.7,5.02120299]
[1751339613078,2.69057,2485.0,2484.6,3.2078]
[1751339613079,0.80472,2484.7,2484.6,3.2078]
[1751339613274,0.80472,2484.7,2484.6,5.28255]
[1751339613479,0.80472,2484.8,2484.7,0.80471]
[1751339613678,0.80469,2484.8,2484.7,4.35231299]
[1751339616589,0.80468,2484.9,2484.8,0.80466]
[1751339616890,0.80468,2484.9,2484.8,1.27]
[1751339618088,0.80468,2484.9,2484.8,2.07469]
[1751339618300,0.80468,2484.9,2484.8,1.27]
[1751339619593,0.80468,2484.9,2484.8,2.07469]
[1751339620690,0.80468,2484.9,2484.8,1.27]
[1751339621192,0.80468,2484.9,2484.8,2.07469]
[1751339622897,0.80468,2484.9,2484.7,2.27760299]
[1751339622898,0.80469,2484.8,2484.7,3.08229299]
[1751339623089,0.80469,2484.8,2484.7,4.35229299]
[1751339624292,1.48365,2485.0,2484.9,0.80466]
[1751339624490,0.80469,2484.9,2484.8,0.80467]
[1751339624695,0.80469,2484.9,2484.8,2.07467]
[1751339625296,0.80469,2484.9,2484.8,1.27]
[1751339627003,2.12419,2484.9,2484.8,1.27]
[1751339627204,0.80469,2484.8,2484.7,3.08231299]
[1751339627398,0.80469,2484.8,2484.7,4.35231299]
[1751339627799,0.80468,2484.9,2484.8,0.80469]
[1751339628101,0.80468,2484.9,2484.8,2.07469]
[1751339629704,0.679,2485.0,2484.9,0.80466]
[1751339629898,0.679,2485.0,2484.9,2.07466]
[1751339630305,0.80462,2485.1,2485.0,0.80459]
[1751339630506,0.80462,2485.1,2485.0,0.7151]
[1751339631408,0.80462,2485.1,2485.0,2.78972]
[1751339632007,0.80462,2485.1,2485.0,1.51972]
[1751339632207,0.80462,2485.1,2485.0,1.9851]
[1751339632410,0.80462,2485.1,2485.0,2.78972]
[1751339632609,0.80462,2485.1,2485.0,0.7151]
[1751339633011,0.80462,2485.1,2485.0,1.51972]
[1751339633309,0.80462,2485.1,2485.0,0.7151]
[1751339633708,0.80462,2485.1,2485.0,2.78972]
[1751339639512,3.50268,2485.2,2485.1,0.80459]
[1751339639813,0.80456,2485.2,2485.1,4.35217299]
[1751339641304,0.80456,2485.2,2485.1,3.08217299]
[1751339641508,0.80459,2485.1,2485.0,1.5197]
[1751339641712,0.80459,2485.1,2485.0,2.7897]
[1751339644508,2.01133,2485.3,2485.0,2.7897]
[1751339644509,0.80458,2485.2,2485.1,0.80457]
[1751339645014,0.80458,2485.2,2485.1,4.35217299]
[1751339646120,0.80458,2485.2,2485.1,3.54760299]
[1751339646415,0.80456,2485.3,2485.2,0.80453]
[1751339646616,0.80456,2485.3,2485.2,2.07453]
[1751339646813,0.80456,2485.3,2485.2,0.80453]
[1751339647015,6.38647605,2485.5,2485.2,1.27]
[1751339647214,7.19093605,2485.5,2485.4,3.08209299]
[1751339647414,4.01226,2485.5,2485.4,4.35209299]
[1751339647614,4.01226,2485.5,2485.4,3.54760299]
[1751339647813,4.01226,2485.5,2485.4,4.35209299]
[1751339648018,0.80446,2485.5,2485.4,3.54760299]
[1751339648419,0.80453,2485.3,2485.2,3.08214299]
[1751339648619,0.80453,2485.3,2485.2,4.35214299]
[1751339649820,0.80453,2485.3,2485.2,7.55994299]
[1751339650422,0.80452,2485.4,2485.3,0.8045]
[1751339651217,0.80452,2485.4,2485.3,2.0745]
[1751339651612,0.80452,2485.4,2485.3,0.8045]
[1751339652021,0.80452,2485.4,2485.3,2.0745]
[1751339653123,0.80452,2485.4,2485.3,0.8045]
[1751339653723,0.80452,2485.4,2485.3,2.0745]
[1751339653926,0.80452,2485.4,2485.3,0.8045]
[1751339654125,0.80452,2485.4,2485.3,2.0745]
[1751339654417,0.80452,2485.4,2485.3,1.27]
[1751339654622,0.80453,2485.3,2485.2,6.28993299]
[1751339654826,0.80453,2485.3,2485.2,7.55993299]
[1751339660225,2.8531,2485.6,2485.2,6.75540299]
[1751339660527,0.80453,2485.4,2485.3,0.80451]
[1751339660724,0.80453,2485.4,2485.3,2.07451]
[1751339663834,0.80453,2485.3,2485.2,6.28994299]
[1751339664130,0.80453,2485.3,2485.2,7.55994299]
[1751339666234,0.80452,2485.4,2485.3,0.8045]
[1751339666434,0.80452,2485.4,2485.3,2.0745]
[1751339669843,0.80449,2485.5,2485.4,0.80447]
[1751339670047,3.17867605,2485.7,2485.4,3.54760299]
[1751339670243,0.80445,2485.6,2485.5,6.28983299]
[1751339670544,0.80445,2485.6,2485.5,8.22173299]
[1751339670937,0.80445,2485.6,2485.5,7.41730299]
[1751339671643,0.80445,2485.6,2485.5,8.22176299]
[1751339672344,0.80445,2485.6,2485.5,5.01396299]
[1751339672843,0.80445,2485.6,2485.5,4.20950299]
[1751339673043,0.80445,2485.6,2485.5,0.6619]
[1751339675540,0.80445,2485.6,2485.5,1.46636]
[1751339676244,0.80445,2485.6,2485.5,2.73636]
[1751339676639,0.80443,2485.7,2485.6,0.80441]
[1751339676840,0.80443,2485.7,2485.6,2.07441]
[1751339677547,0.80443,2485.7,2485.6,1.27]
[1751339683849,25.27843,2485.7,2485.6,1.27]
[1751339684053,0.80443,2485.6,2485.5,0.6619]
[1751339684247,0.80443,2485.6,2485.5,1.9319]
[1751339684647,0.80443,2485.6,2485.5,0.6619]
[1751339684950,0.80443,2485.6,2485.5,2.73636]
[1751339685354,0.80443,2485.6,2485.5,1.9319]
[1751339685554,0.80443,2485.6,2485.5,2.73636]
[1751339686251,0.80443,2485.6,2485.5,1.9319]
[1751339687154,0.80443,2485.6,2485.5,0.6619]
[1751339687354,0.80443,2485.6,2485.5,1.9319]
[1751339687546,0.80443,2485.6,2485.5,5.01396299]
[1751339688557,0.80443,2485.6,2485.5,4.20950299]
[1751339688853,0.80443,2485.6,2485.5,2.93950299]
[1751339689048,0.80443,2485.6,2485.5,0.6619]
[1751339690253,0.80443,2485.6,2485.1,5.21927]
[1751339690254,0.80456,2485.2,2485.1,3.2078]
[1751339690451,0.80456,2485.2,2485.1,4.75]
[1751339690651,0.80456,2485.2,2485.1,5.15]
[1751339690851,0.80456,2485.2,2485.1,3.88]
[1751339691254,0.80456,2485.2,2485.1,3.2078]
[1751339691851,2.20786,2485.2,2485.1,3.2078]
[1751339696864,2.20786,2485.2,2485.1,4.4778]
[1751339697059,25.27456,2485.2,2485.1,6.75540299]
[1751339697457,0.80456,2485.2,2485.1,6.75540299]
[1751339697663,25.27456,2485.2,2485.1,6.75540299]
[1751339698063,25.27456,2485.2,2485.1,3.54760299]
[1751339698364,25.27456,2485.2,2485.1,2.27760299]
[1751339698567,25.27456,2485.2,2485.1,3.54760299]
[1751339700369,0.80456,2485.3,2485.2,0.80453]
[1751339700570,0.80456,2485.3,2485.2,2.74403]
[1751339700866,0.80448,2485.5,2485.4,0.80448]
[1751339701064,0.80448,2485.5,2485.4,7.55988299]
[1751339701464,0.80448,2485.5,2485.4,8.97288299]
[1751339701659,0.80448,2485.5,2485.4,6.89840299]
[1751339701864,0.80448,2485.5,2485.4,8.16840299]
[1751339702468,0.80448,2485.5,2485.4,8.97289299]
[1751339704469,0.80448,2485.5,2485.4,8.16840299]
[1751339704864,0.80448,2485.5,2485.4,8.97289299]
[1751339705271,0.80448,2485.5,2485.4,8.16840299]
[1751339705871,0.80448,2485.5,2485.4,8.97289299]
[1751339706272,0.80448,2485.5,2485.4,8.16840299]
[1751339706874,0.80448,2485.5,2485.4,6.75540299]
[1751339707272,0.80448,2485.5,2485.4,3.2078]
[1751339707574,0.80453,2485.3,2485.2,6.15490299]
[1751339707776,0.80453,2485.3,2485.2,7.42490299]
[1751339710672,0.80453,2485.3,2485.2,3.8773]
[1751339710873,0.80453,2485.3,2485.2,1.9395]
[1751339711176,0.80453,2485.3,2485.2,4.21710299]
[1751339711872,0.80453,2485.3,2485.2,5.02166299]
[1751339712074,0.80453,2485.3,2485.2,8.22946299]
[1751339712471,0.80453,2485.3,2485.2,7.42490299]
[1751339712778,0.80453,2485.3,2485.2,8.22946299]
[1751339713675,25.1247,2485.5,2485.2,8.22946299]
[1751339713676,25.1247,2485.5,2485.2,7.42490299]
[1751339713878,0.80453,2485.3,2485.2,8.22945299]
[1751339716280,0.80451,2485.4,2485.3,0.8045]
[1751339716482,0.80451,2485.4,2485.3,2.0745]
[1751339716681,0.80451,2485.4,2485.3,1.27]
[1751339717484,0.80453,2485.3,2485.2,6.95944299]
[1751339717688,0.80453,2485.3,2485.2,8.22944299]
[1751339720480,0.8045,2485.5,2485.4,0.80447]
[1751339720679,0.8045,2485.5,2485.4,3.54760299]
[1751339721783,0.8045,2485.5,2485.4,4.35209299]
[1751339724682,1.3767,2485.8,2485.4,3.54760299]
[1751339724986,25.26542,2485.7,2485.6,3.08202299]
[1751339725185,25.26542,2485.7,2485.6,3.54760299]
[1751339725388,25.26542,2485.7,2485.6,4.24120299]
[1751339726489,25.26542,2485.7,2485.6,5.04563299]
[1751339726989,0.80442,2485.7,2485.6,5.04563299]
[1751339728588,0.80442,2485.7,2485.6,3.77563299]
[1751339728786,0.80442,2485.7,2485.6,4.24120299]
[1751339729392,0.80442,2485.7,2485.6,5.04563299]
[1751339729792,0.80435,2485.9,2485.8,0.80434]
[1751339729988,0.80435,2485.9,2485.8,7.55974299]
[1751339730189,0.80433,2486.0,2485.9,0.80431]
[1751339730391,0.80433,2486.0,2485.9,2.07431]
[1751339731294,0.80433,2486.0,2485.9,1.27]
[1751339732599,0.80433,2486.0,2485.9,2.07433]
[1751339733395,0.80433,2486.0,2485.9,1.27]
[1751339734596,0.80433,2485.9,2485.8,5.48540299]
[1751339734798,0.80433,2485.9,2485.8,7.55976299]
[1751339735497,0.80433,2485.9,2485.8,6.75540299]
[1751339737599,0.80433,2485.9,2485.8,7.55976299]
[1751339737798,0.80433,2485.9,2485.8,6.75540299]
[1751339740400,0.80433,2485.9,2485.8,7.55976299]
[1751339746608,0.8043,2486.1,2486.0,0.80427]
[1751339746816,0.8043,2486.1,2486.0,3.54760299]
[1751339747213,0.8043,2486.1,2486.0,4.35190299]
[1751339747517,0.8043,2486.1,2486.0,3.54760299]
[1751339748318,0.8043,2486.1,2486.0,4.35190299]
[1751339749209,0.8043,2486.1,2486.0,3.54760299]
[1751339749517,0.8043,2486.1,2486.0,4.35190299]
[1751339750111,0.8043,2486.1,2486.0,3.54760299]
[1751339750818,0.8043,2486.1,2486.0,4.35190299]
[1751339751316,0.8043,2486.1,2486.0,2.27760299]
[1751339751519,0.8043,2486.1,2486.0,3.54760299]
[1751339751721,0.8043,2486.1,2486.0,4.35190299]
[1751339752921,0.8043,2486.1,2486.0,3.54760299]
[1751339754019,0.8043,2486.1,2486.0,4.35190299]
[1751339754216,0.8043,2486.1,2486.0,3.54760299]
[1751339755119,0.80433,2485.9,2485.8,5.48540299]
[1751339755423,0.80433,2485.9,2485.8,5.52540299]
[1751339756014,0.80433,2486.0,2485.9,0.80432]
[1751339756220,1.4302,2486.1,2485.9,0.04]
[1751339756420,0.8043,2486.0,2485.9,0.04]
[1751339758118,1.5088,2486.0,2485.9,0.04]
[1751339759519,0.80433,2485.9,2485.8,3.2078]
[1751339759719,0.80456,2485.2,2485.1,3.2078]
[1751339759918,4.28872299,2485.6,2485.1,7.45200299]
[1751339760117,0.80456,2485.2,2485.1,7.45200299]
[1751339760319,0.80455,2485.3,2485.1,7.45200299]
[1751339760623,0.80455,2485.3,2485.1,8.25657299]
[1751339760919,0.80456,2485.2,2485.1,8.25657299]
[1751339761423,0.80475,2484.6,2484.5,5.48540299]
[1751339761622,0.80473,2484.7,2484.5,7.41440299]
[1751339761918,0.80472,2484.7,2484.6,3.08234299]
[1751339762118,0.80472,2484.7,2484.6,4.35234299]
[1751339764121,0.80471,2484.8,2484.7,0.8047]
[1751339764322,3.2078,2485.3,2485.0,0.80459]
[1751339764520,4.01233,2485.3,2485.2,2.27760299]
[1751339764723,4.01233,2485.3,2485.2,3.54760299]
[1751339765127,0.80453,2485.3,2485.2,4.35216299]
[1751339765321,4.59017605,2485.7,2485.2,3.54760299]
[1751339765523,0.80442,2485.7,2485.6,3.08201299]
[1751339765827,4.01214,2485.9,2485.8,0.80436]
[1751339766023,0.80436,2485.8,2485.7,2.17677]
[1751339766224,0.80436,2485.8,2485.7,3.44677]
[1751339766628,4.01216,2485.9,2485.8,0.80436]
[1751339766821,4.01216,2485.9,2485.8,2.07436]
[1751339767021,4.01216,2485.9,2485.8,4.35196299]
[1751339767324,0.80436,2485.9,2485.8,4.35196299]
[1751339767523,0.80436,2485.9,2485.8,3.54760299]
[1751339768227,0.80436,2485.9,2485.8,4.35196299]
[1751339769027,0.80429,2486.1,2485.9,0.80431]
[1751339769329,0.80429,2486.1,2486.0,2.27760299]
[1751339769524,0.80429,2486.1,2486.0,3.54760299]
[1751339770632,0.80429,2486.1,2486.0,4.35190299]
[1751339771628,0.6535,2486.3,2486.1,0.80424]
[1751339771832,0.8042,2486.3,2486.2,2.95300299]
[1751339772028,0.8042,2486.3,2486.2,4.22300299]
[1751339772230,0.8042,2486.3,2486.2,5.02724299]
[1751339772531,0.8042,2486.3,2486.2,4.22300299]
[1751339772726,0.8042,2486.3,2486.2,5.02724299]
[1751339772924,0.8042,2486.3,2486.2,4.22300299]
[1751339773126,0.8042,2486.3,2486.2,5.02724299]
[1751339773330,1.49416,2486.5,2486.4,0.80417]
[1751339773534,0.80409,2486.7,2486.6,0.80409]
[1751339773835,0.80409,2486.7,2486.6,4.35169299]
[1751339774634,0.80409,2486.7,2486.6,3.54760299]
[1751339775031,0.80409,2486.7,2486.6,4.21640299]
[1751339775242,3.2078,2487.4,2486.9,0.804]
[1751339775429,3.2078,2487.4,2486.9,3.54760299]
[1751339775430,5.21745,2487.4,2486.9,3.54760299]
[1751339775632,0.80398,2487.0,2486.9,3.54760299]
[1751339775937,0.80398,2487.0,2486.9,4.35161299]
[1751339776136,0.80396,2487.1,2487.0,0.80398]
[1751339776328,0.80396,2487.1,2487.0,1.27]
[1751339776528,0.80396,2487.1,2486.9,3.08158299]
[1751339776729,0.80398,2487.0,2486.9,2.27760299]
[1751339777531,0.80398,2487.0,2486.9,4.35161299]
[1751339778132,0.80398,2487.0,2486.9,3.54760299]
[1751339778434,0.6688,2487.2,2486.9,4.35160299]
[1751339778435,0.80397,2487.1,2486.9,4.35160299]
[1751339778740,0.80394,2487.2,2487.1,0.80394]
[1751339778937,0.80394,2487.2,2487.0,3.75266299]
[1751339779145,0.80394,2487.2,2487.0,5.02266299]
[1751339779330,0.80394,2487.2,2487.1,0.80394]
[1751339779531,0.80394,2487.2,2487.0,3.75266299]
[1751339779732,0.80394,2487.2,2487.1,0.80394]
[1751339779937,0.80394,2487.1,2487.0,3.75265299]
[1751339780133,0.80394,2487.1,2487.0,5.02265299]
[1751339780542,0.80393,2487.2,2487.1,0.80393]
[1751339780843,3.2078,2487.4,2487.3,0.80388]
[1751339781044,3.2078,2487.4,2487.3,4.35148299]
[1751339781345,4.01165,2487.4,2487.3,4.35148299]
[1751339781536,4.01165,2487.4,2487.3,2.27760299]
[1751339782235,4.01165,2487.4,2487.3,4.35148299]
[1751339782236,3.2078,2487.4,2487.3,4.35148299]
[1751339782641,4.01158,2487.7,2487.6,0.80378]
[1751339782839,4.01158,2487.7,2487.6,2.07378]
[1751339783440,4.01158,2487.7,2487.6,1.27]
[1751339783641,0.80378,2487.6,2487.5,3.08139299]
[1751339783841,0.80378,2487.6,2487.5,4.35139299]
[1751339784639,0.80378,2487.6,2487.5,3.54760299]
[1751339785037,0.80378,2487.6,2487.5,4.35142299]
[1751339786944,0.80378,2487.6,2487.5,3.54760299]
[1751339787538,4.01157,2487.7,2487.5,4.35139299]
[1751339787738,4.01157,2487.7,2487.6,0.80378]
[1751339788242,3.2078,2487.7,2487.6,2.07378]
[1751339788442,3.2078,2487.7,2487.6,0.80378]
[1751339788844,4.01155,2487.7,2487.6,0.80378]
[1751339789839,4.01155,2487.7,2487.6,2.07378]
[1751339790237,0.80375,2487.7,2487.6,2.07378]
[1751339790540,0.80374,2487.8,2487.7,0.80371]
[1751339790735,0.80372,2487.9,2487.8,0.80369]
[1751339790940,0.80372,2487.9,2487.8,1.48149]
[1751339791246,0.80367,2488.0,2487.9,0.80364]
[1751339791447,0.80367,2488.0,2487.9,4.35124299]
[1751339791749,0.80364,2488.1,2488.0,0.80362]
[1751339792246,0.80364,2488.1,2488.0,2.07362]
[1751339792645,0.80365,2488.0,2487.9,2.27760299]
[1751339793248,0.80365,2488.0,2487.9,4.35129299]
[1751339794346,0.8036,2488.2,2488.1,0.8036]
[1751339794648,0.8036,2488.2,2488.1,3.08120299]
[1751339794945,0.8036,2488.2,2488.1,2.27760299]
[1751339795147,0.8036,2488.2,2488.1,3.08122299]
[1751339795537,4.01138,2488.3,2488.2,0.80359]
[1751339796149,0.80359,2488.2,2488.1,3.08120299]
[1751339797041,0.80359,2488.2,2488.1,2.27760299]
[1751339797242,0.80365,2488.0,2487.9,2.27760299]
[1751339797844,0.80369,2487.9,2487.8,1.5178]
[1751339798046,0.80368,2488.0,2487.9,0.80368]
[1751339798235,0.80369,2487.9,2487.8,1.51779]
[1751339798740,0.80367,2488.0,2487.9,0.80366]
[1751339798939,0.80369,2487.9,2487.8,0.7141]
[1751339799244,0.80369,2487.9,2487.8,2.99170299]
[1751339799439,0.80369,2487.9,2487.8,4.26170299]
[1751339800346,0.80368,2488.0,2487.9,0.80367]
[1751339800547,0.80364,2488.1,2488.0,0.80362]
[1751339801348,0.80365,2488.0,2487.9,3.08126299]
[1751339801648,0.80365,2488.0,2487.9,4.35126299]
[1751339802148,0.80365,2488.0,2487.9,4.35129299]
[1751339804943,0.80365,2488.0,2487.9,3.54760299]
[1751339806141,0.80372,2487.8,2487.7,3.2078]
[1751339806446,0.80372,2487.8,2487.7,6.75540299]
[1751339806949,0.80372,2487.8,2487.7,7.55912299]
[1751339807145,0.80372,2487.8,2487.7,4.35132299]
[1751339807643,0.80371,2487.9,2487.8,0.80371]
[1751339807847,0.80371,2487.9,2487.8,2.07371]
[1751339808249,0.80368,2488.0,2487.9,0.80369]
[1751339808444,0.80368,2488.0,2487.9,2.07369]
[1751339808651,0.80368,2488.0,2487.9,2.27760299]
[1751339808949,0.80369,2487.9,2487.8,0.6895]
[1751339809149,0.80369,2487.9,2487.8,1.9595]
[1751339810050,0.80369,2487.9,2487.8,4.23710299]
[1751339810549,0.80369,2487.9,2487.8,5.04079299]
[1751339812150,0.80369,2487.9,2487.8,2.96710299]
[1751339813050,0.80369,2487.9,2487.8,2.27760299]
[1751339813253,0.80375,2487.7,2487.6,3.79167299]
[1751339813448,0.80375,2487.7,2487.6,5.06167299]
[1751339814351,0.80375,2487.7,2487.6,0.7103]
[1751339814555,0.80375,2487.7,2487.6,1.51408]
[1751339815155,0.80375,2487.7,2487.6,2.78408]
[1751339815358,0.80375,2487.7,2487.6,1.51408]
[1751339815658,0.80375,2487.7,2487.6,2.78408]
[1751339816254,0.80375,2487.7,2487.6,1.51408]
[1751339816454,0.80375,2487.7,2487.6,2.78408]
[1751339816855,0.80375,2487.7,2487.6,0.7103]
[1751339817155,0.80378,2487.6,2487.5,2.27760299]
[1751339817659,0.80385,2487.4,2487.3,3.9237]
[1751339817844,0.80385,2487.4,2487.3,3.9737]
[1751339818150,0.80385,2487.4,2487.3,3.9237]
[1751339819758,0.80385,2487.4,2487.3,5.99758]
[1751339819956,0.80385,2487.4,2487.3,7.00518299]
[1751339820157,0.80385,2487.4,2487.3,8.27518299]
[1751339820348,0.80385,2487.4,2487.3,7.00518299]
[1751339820550,0.80385,2487.4,2487.3,8.27518299]
[1751339820757,0.80385,2487.4,2487.3,7.00518299]
[1751339821056,0.80384,2487.5,2487.4,0.80382]
[1751339821254,0.80385,2487.4,2487.3,6.20130299]
[1751339821656,0.80385,2487.4,2487.3,7.47130299]
[1751339821953,0.80385,2487.4,2487.3,4.26350299]
[1751339822458,0.80385,2487.4,2487.3,5.06738299]
[1751339824761,0.80385,2487.4,2487.3,4.26350299]
[1751339824963,0.80385,2487.4,2487.3,2.99350299]
[1751339825162,0.80385,2487.4,2487.3,3.79738299]
[1751339825363,0.80385,2487.4,2487.3,5.06738299]
[1751339827660,0.80385,2487.4,2487.3,4.26350299]
[1751339828661,0.80385,2487.4,2487.3,5.06738299]
[1751339829769,0.80385,2487.4,2487.3,4.26350299]
[1751339830368,0.80385,2487.4,2487.3,2.99350299]
[1751339831569,0.80385,2487.4,2487.3,3.02350299]
[1751339834163,2.00964,2487.4,2487.0,3.2078]
[1751339834360,0.80394,2487.2,2487.1,0.80393]
[1751339834565,0.8039,2487.3,2487.2,0.80388]
[1751339834770,0.8039,2487.3,2487.2,2.07388]
[1751339836169,0.706,2487.5,2487.2,1.27]
[1751339836372,0.80384,2487.5,2487.4,3.08143299]
[1751339836571,0.80384,2487.5,2487.4,4.35143299]
[1751339838274,0.80384,2487.5,2487.4,3.08143299]
[1751339838675,0.80384,2487.5,2487.4,4.35143299]
[1751339838976,0.80384,2487.5,2487.4,3.08143299]
[1751339840372,0.80384,2487.5,2487.4,4.35143299]
[1751339841777,0.80381,2487.6,2487.5,0.80379]
[1751339845881,0.80382,2487.5,2487.4,3.08143299]
[1751339846277,0.80382,2487.5,2487.4,4.35143299]
[1751339848885,0.80382,2487.5,2487.4,3.08143299]
[1751339850187,0.80382,2487.5,2487.4,4.35143299]
[1751339850688,7.20705794,2487.7,2487.6,0.80378]
[1751339850885,0.80376,2487.7,2487.6,3.08138299]
[1751339851386,0.80376,2487.7,2487.6,2.27760299]
[1751339851786,0.80376,2487.7,2487.6,3.73858299]
[1751339852292,0.80382,2487.5,2487.4,3.08143299]
[1751339852490,0.80382,2487.5,2487.4,3.78333299]
[1751339852787,0.8038,2487.6,2487.5,0.80379]
[1751339854790,0.80382,2487.5,2487.4,3.78332299]
[1751339855092,0.80381,2487.6,2487.5,0.8038]
[1751339858987,4.01155,2487.8,2487.7,0.80375]
[1751339859294,4.01155,2487.8,2487.7,3.08135299]
[1751339860094,4.01155,2487.8,2487.7,2.27760299]
[1751339860294,0.80375,2487.8,2487.7,2.27760299]
[1751339860489,0.80375,2487.8,2487.7,2.98670299]
[1751339861998,0.80375,2487.8,2487.7,0.7091]
[1751339863700,4.01155,2487.8,2487.7,0.7091]
[1751339864392,4.01155,2487.8,2487.3,0.658]
[1751339864393,0.80385,2487.4,2487.3,0.658]
[1751339864592,0.80385,2487.4,2487.3,1.4345]